fUST/lending_fUST_20260316
["ID","MTS","AMOUNT","RATE_DAILY","PERIOD"]
[408420602,1773595838864,-174.61919141,0.00010421,2]
[408420603,1773595838874,-2579.17784983,0.00010423,2]
[408420604,1773595838883,-506.18666526,0.00010685,2]
[408420605,1773595838892,-2674.60743027,0.00010971,2]
[408420606,1773595838902,-2208.04651345,0.00011002,2]
[408420607,1773595838912,-196.130592,0.0001107,2]
[408420608,1773595838921,-439.30090128,0.000112,2]
[408420609,1773595838930,-439.30090128,0.000112,2]
[408420610,1773595838939,-1359.90418997,0.0001125,7]
[408420611,1773595838949,-501.28698986,0.00011273,2]
[408420612,1773595839198,-373.39825019,0.00011284,2]
[408420613,1773595839229,-151.0,0.000113,2]
[408420614,1773595839240,-151.0,0.000113,2]
[408420615,1773595839250,-1018.48117061,0.0001132,7]
[408420616,1773595839260,-1631.56472479,0.00011368,7]
[408420617,1773595839269,-5253.62513559,0.00011392,7]
[408420618,1773595839280,-5000.0,0.00011396,2]
[408420619,1773595839290,-2773.56790519,0.00011519,2]
[408420620,1773595839300,-1330.02595666,0.00011568,7]
[408420621,1773595839309,-318.41116746,0.00011578,7]
[408420622,1773595839320,-1018.48117061,0.00011585,7]
[408420623,1773595839329,-156.0,0.000116,2]
[408420624,1773595839338,-276.12583388,0.00011614,2]
[408420625,1773595839348,-528.04445748,0.00011614,2]
[408420626,1773595839358,-5000.0,0.00011615,2]
[408420627,1773595839367,-5253.62513559,0.00011624,7]
[408420628,1773595839377,-600.0,0.00011624,2]
[408420629,1773595839386,-1359.90418997,0.00011666,7]
[408420630,1773595839395,-151.0,0.000117,2]
[408420631,1773595839404,-151.0,0.000117,2]
[408420632,1773595839413,-151.0,0.000117,2]
[408420633,1773595839422,-151.0,0.000117,2]
[408420634,1773595839431,-151.0,0.000117,2]
[408420635,1773595839440,-151.0,0.000117,2]
[408420636,1773595839450,-151.0,0.000117,2]
[408420637,1773595839459,-151.0,0.000117,2]
[408420638,1773595839468,-151.0,0.000117,2]
[408420639,1773595839478,-151.0,0.000117,2]
[408420640,1773595839489,-151.0,0.000117,2]
[408420641,1773595839498,-151.0,0.000117,2]
[408420642,1773595839508,-1631.56472479,0.0001171,7]
[408420643,1773595839519,-1000000.0,0.00011713,2]
[408420644,1773595839530,-279.44487623,0.00011759,7]
[408420645,1773595839542,-228.13472548,0.00011759,7]
[408420646,1773595839551,-300.0,0.00011773,2]
[408420647,1773595839561,-166.70606802,0.0001179,2]
[408420648,1773595839571,-174.82722222,0.00011819,7]
[408420649,1773595839582,-1018.48117061,0.00011849,7]
[408420650,1773595839592,-5253.62513559,0.00011855,7]
[408420651,1773595839601,-224.15289917,0.00011934,7]
[408420652,1773595839611,-259.3302111,0.00011934,7]
[408420653,1773595839620,-324.6985643,0.0001195,2]
[408420654,1773595839632,-454.8628338,0.00011952,2]
[408420655,1773595839643,-235.57888127,0.00011955,7]
[408420656,1773595839652,-1330.02595666,0.00011959,7]
[408420657,1773595839662,-285.74426784,0.00011984,7]
[408420658,1773595839671,-276.21403929,0.00011984,7]
[408420659,1773595839682,-160.9507888,0.00011986,7]
[408420660,1773595839691,-4192.0,0.00012,2]
[408420661,1773595839702,-1249.0,0.00012,3]
[408420662,1773595839712,-853.37,0.00012,2]
[408420663,1773595839722,-1631.56472479,0.00012052,7]
[408420664,1773595839737,-323.8389242,0.00012055,2]
[408420665,1773595839747,-2876.18991768,0.00012067,2]
[408420666,1773595839757,-421.244886,0.00012082,2]
[408420667,1773595839766,-246.817953,0.00012082,2]
[408420668,1773595839775,-378.733642,0.00012082,2]
[408420669,1773595839784,-160.0,0.00012082,2]
[408420670,1773595839794,-192.714866,0.00012082,2]
[408420671,1773595839803,-225.429732,0.00012082,2]
[408420672,1773595839813,-258.144599,0.00012082,2]
[408420673,1773595839822,-290.859465,0.00012082,2]
[408420675,1773595839832,-323.574332,0.00012082,2]
[408420677,1773595839841,-356.289198,0.00012082,2]
[408420679,1773595839851,-389.004064,0.00012082,2]
[408420681,1773595839860,-421.718931,0.00012082,2]
[408420683,1773595839870,-454.433797,0.00012082,2]
[408420684,1773595839879,-662.546228,0.00012082,2]
[408420686,1773595839888,-160.0,0.00012082,2]
[408420688,1773595839898,-194.046611,0.00012082,2]
[408420690,1773595839906,-228.093223,0.00012082,2]
[408420692,1773595839916,-262.139834,0.00012082,2]
[408420694,1773595839926,-296.186446,0.00012082,2]
[408420696,1773595839935,-330.233057,0.00012082,2]
[408420698,1773595839943,-364.279669,0.00012082,2]
[408420700,1773595839953,-398.32628,0.00012082,2]
[408420702,1773595839962,-432.372892,0.00012082,2]
[408420704,1773595839971,-466.419504,0.00012082,2]
[408420706,1773595839981,-1359.90418997,0.00012083,7]
[408420708,1773595839991,-5253.62513559,0.00012087,7]
[408420710,1773595840000,-1018.48117061,0.00012113,7]
[408420712,1773595840010,-10000.0,0.00012164,2]
[408420714,1773595840018,-263.79492637,0.00012167,7]
[408420716,1773595840027,-373.39825019,0.00012167,7]
[408420718,1773595840036,-10000.0,0.000122,14]
[408420720,1773595840046,-5000.0,0.00012254,2]
[408420722,1773595840055,-5000.0,0.00012254,2]
[408420724,1773595840064,-5253.62513559,0.00012319,7]
[408420725,1773595840075,-600.0,0.00012321,2]
[408420727,1773595840084,-1274.1,0.00012329,2]
[408420729,1773595840094,-16146.04,0.00012329,2]
[408420731,1773595840102,-13455.03,0.00012329,2]
[408420733,1773595840111,-11212.53,0.00012329,2]
[408420735,1773595840121,-9343.77,0.00012329,2]
[408420737,1773595840129,-7786.48,0.00012329,2]
[408420739,1773595840138,-7786.48,0.00012329,2]
[408420741,1773595840147,-5190.98,0.00012329,2]
[408420743,1773595840156,-4325.82,0.00012329,2]
[408420745,1773595840165,-3604.85,0.00012329,2]
[408420747,1773595840175,-3004.04,0.00012329,2]
[408420749,1773595840184,-2503.37,0.00012329,2]
[408420751,1773595840193,-2086.14,0.00012329,2]
[408420753,1773595840202,-1738.45,0.00012329,2]
[408420755,1773595840213,-1448.71,0.00012329,2]
[408420757,1773595840221,-1207.26,0.00012329,2]
[408420759,1773595840230,-1006.05,0.00012329,2]
[408420761,1773595840239,-838.37,0.00012329,2]
[408420763,1773595840248,-698.64,0.00012329,2]
[408420765,1773595840257,-1330.02595666,0.00012351,7]
[408420767,1773595840266,-227.35707143,0.00012373,2]
[408420769,1773595840275,-1018.48117061,0.00012377,7]
[408420771,1773595840285,-1631.56472479,0.00012394,7]
[408420773,1773595840294,-5253.62513559,0.00012551,7]
[408420775,1773595840303,-2982.60894464,0.00012615,2]
[408420777,1773595840312,-1018.48117061,0.00012641,7]
[408420779,1773595840320,-1000.0,0.000127,14]
[408420781,1773595840329,-259.3302111,0.00012701,7]
[408420783,1773595840338,-1631.56472479,0.00012735,7]
[408420785,1773595840348,-1330.02595666,0.00012743,7]
[408420787,1773595840357,-5253.62513559,0.00012783,7]
[408420789,1773595840366,-720.0,0.00012787,2]
[408420791,1773595840375,-375.47327431,0.00012787,2]
[408420793,1773595840384,-1000.0,0.000128,14]
[408420795,1773595840393,-900.0,0.00012868,2]
[408420797,1773595840402,-162.0,0.00012893,2]
[408420799,1773595840411,-162.0,0.00012893,2]
[408420801,1773595840420,-162.0,0.00012893,2]
[408420803,1773595840429,-162.0,0.00012893,2]
[408420805,1773595840438,-168.0,0.00012893,2]
[408420807,1773595840448,-747.5,0.000129,2]
[408420809,1773595840457,-1018.48117061,0.00012905,7]
[408420812,1773595840470,-5000.0,0.00013,7]
[408420813,1773595840480,-157.0,0.00013,3]
[408420816,1773595840490,-162.0,0.00013008,2]
[408420818,1773595840499,-5253.62513559,0.00013015,7]
[408420820,1773595840508,-373.39825019,0.00013051,7]
[408420822,1773595840517,-1000.0,0.000131,14]
[408420823,1773595840526,-279.44487623,0.00013119,7]
[408420825,1773595840535,-228.13472548,0.00013119,7]
[408420827,1773595840544,-1330.02595666,0.00013135,7]
[408420829,1773595840553,-318.41116746,0.00013156,7]
[408420831,1773595840563,-3092.96547559,0.00013163,2]
[408420833,1773595840572,-1018.48117061,0.00013169,7]
[408420836,1773595840582,-5253.62513559,0.00013247,7]
[408420837,1773595840591,-162.0,0.00013328,2]
[408420840,1773595840601,-1200.0,0.00013416,2]
[408420842,1773595840610,-1018.48117061,0.00013433,7]
[408420844,1773595840620,-340741.58011981,0.00013454,2]
[408420846,1773595840630,-151.0,0.00013454,2]
[408420848,1773595840640,-151.0,0.00013454,2]
[408420849,1773595840649,-224.15289917,0.00013467,7]
[408420851,1773595840659,-259.3302111,0.00013467,7]
[408420853,1773595840669,-5253.62513559,0.00013479,14]
[408420855,1773595840679,-5000.0,0.000135,7]
[408420857,1773595840688,-235.57888127,0.00013509,7]
[408420859,1773595840697,-1330.02595666,0.00013527,14]
[408420861,1773595840707,-4656.01612163,0.00013561,2]
[408420863,1773595840716,-285.74426784,0.00013568,7]
[408420865,1773595840726,-276.21403929,0.00013568,7]
[408420867,1773595840740,-160.9507888,0.00013572,14]
[408420870,1773595840749,-174.82722222,0.00013638,14]
[408420872,1773595840759,-1628.7650817,0.00013661,2]
[408420874,1773595840768,-162.0,0.00013669,2]
[408420876,1773595840778,-346.57312044,0.0001369,7]
[408420878,1773595840788,-346.57312044,0.0001369,7]
[408420881,1773595840799,-346.57312044,0.0001369,7]
[408420882,1773595840812,-346.57312044,0.0001369,7]
[408420884,1773595840822,-18723.11,0.00013698,2]
[408420886,1773595840831,-18723.11,0.00013698,2]
[408420888,1773595840841,-500.0,0.00013698,2]
[408420890,1773595840851,-500.0,0.00013698,2]
[408420891,1773595840861,-500.0,0.00013698,2]
[408420892,1773595840870,-318.09587624,0.00013698,2]
[408420893,1773595840879,-590.51887758,0.00013698,2]
[408420894,1773595840888,-500.0,0.00013698,2]
[408420895,1773595840898,-500.0,0.00013698,2]
[408420896,1773595840907,-504.79314341,0.00013698,2]
[408420897,1773595840917,-224.19684839,0.00013698,2]
[408420898,1773595840926,-579.76299667,0.00013698,2]
[408420900,1773595840936,-500.0,0.00013698,2]
[408420902,1773595840946,-500.0,0.00013698,2]
[408420903,1773595840955,-500.0,0.00013698,2]
[408420904,1773595840964,-500.0,0.00013698,2]
[408420905,1773595840973,-336.66203318,0.00013698,2]
[408420906,1773595840983,-421.64774702,0.00013698,2]
[408420907,1773595840992,-500.0,0.00013698,2]
[408420908,1773595841002,-500.0,0.00013698,2]
[408420909,1773595841012,-289.9291999,0.00013698,2]
[408420910,1773595841021,-500.0,0.00013698,2]
[408420911,1773595841030,-500.0,0.00013698,2]
[408420912,1773595841040,-500.0,0.00013698,2]
[408420913,1773595841051,-500.0,0.00013698,2]
[408420914,1773595841061,-500.0,0.00013698,2]
[408420915,1773595841073,-500.0,0.00013698,2]
[408420916,1773595841082,-500.0,0.00013698,2]
[408420917,1773595841092,-500.0,0.00013698,2]
[408420918,1773595841102,-500.0,0.00013698,2]
[408420919,1773595841112,-501.77021536,0.00013698,2]
[408420920,1773595841122,-4234.99,0.00013698,2]
[408420921,1773595841132,-4234.99,0.00013698,2]
[408420922,1773595841143,-4234.99,0.00013698,2]
[408420923,1773595841152,-4234.99,0.00013698,2]
[408420924,1773595841161,-4234.99,0.00013698,2]
[408420925,1773595841171,-4234.99,0.00013698,2]
[408420926,1773595841180,-4234.99,0.00013698,2]
[408420927,1773595841190,-4234.99,0.00013698,2]
[408420928,1773595841199,-4234.99,0.00013698,2]
[408420929,1773595841209,-4234.99,0.00013698,2]
[408420930,1773595841218,-4234.99,0.00013698,2]
[408420931,1773595841227,-4234.99,0.00013698,2]
[408420932,1773595841236,-4234.99,0.00013698,2]
[408420933,1773595841246,-4234.99,0.00013698,2]
[408420934,1773595841256,-4234.99,0.00013698,2]
[408420935,1773595841265,-4234.99,0.00013698,2]
[408420936,1773595841274,-4234.99,0.00013698,2]
[408420937,1773595841283,-4234.99,0.00013698,2]
[408420938,1773595841293,-4234.99,0.00013698,2]
[408420939,1773595841302,-4234.99,0.00013698,2]
[408420940,1773595841312,-4234.99,0.00013698,2]
[408420941,1773595841321,-4234.99,0.00013698,2]
[408420942,1773595841331,-4234.99,0.00013698,2]
[408420943,1773595841340,-4235.14265192,0.00013698,2]
[408420944,1773595841349,-500.0,0.00013698,2]
[408420945,1773595841358,-500.0,0.00013698,2]
[408420946,1773595841367,-500.0,0.00013698,2]
[408420947,1773595841376,-500.0,0.00013698,2]
[408420948,1773595841385,-500.0,0.00013698,2]
[408420949,1773595841395,-500.0,0.00013698,2]
[408420950,1773595841404,-500.0,0.00013698,2]
[408420951,1773595841413,-500.0,0.00013698,2]
[408420952,1773595841422,-500.0,0.00013698,2]
[408420953,1773595841432,-500.0,0.00013698,2]
[408420954,1773595841442,-500.0,0.00013698,2]
[408420955,1773595841452,-497.50937799,0.00013698,2]
[408420956,1773595841462,-500.0,0.00013698,2]
[408420957,1773595841473,-629.40983801,0.00013698,2]
[408420958,1773595841483,-500.0,0.00013698,2]
[408420959,1773595841494,-506.18,0.00013698,2]
[408420960,1773595841504,-507.1321194,0.00013698,2]
[408420961,1773595841515,-721.57,0.00013698,2]
[408420962,1773595841524,-721.57,0.00013698,2]
[408420963,1773595841534,-721.57,0.00013698,2]
[408420964,1773595841544,-721.57,0.00013698,2]
[408420965,1773595841554,-721.57,0.00013698,2]
[408420966,1773595841563,-721.57,0.00013698,2]
[408420967,1773595841573,-721.57,0.00013698,2]
[408420968,1773595841583,-721.57,0.00013698,2]
[408420969,1773595841593,-721.57,0.00013698,2]
[408420970,1773595841602,-721.57,0.00013698,2]
[408420971,1773595841611,-721.57,0.00013698,2]
[408420972,1773595841621,-721.57,0.00013698,2]
[408420973,1773595841630,-721.57,0.00013698,2]
[408420974,1773595841640,-721.57,0.00013698,2]
[408420975,1773595841649,-721.57,0.00013698,2]
[408420976,1773595841659,-721.57,0.00013698,2]
[408420977,1773595841668,-721.57,0.00013698,2]
[408420978,1773595841677,-721.57,0.00013698,2]
[408420979,1773595841686,-721.57,0.00013698,2]
[408420980,1773595841695,-721.57,0.00013698,2]
[408420981,1773595841704,-721.57,0.00013698,2]
[408420982,1773595841714,-721.57,0.00013698,2]
[408420983,1773595841723,-721.57,0.00013698,2]
[408420984,1773595841736,-721.70896363,0.00013698,2]
[408420985,1773595841745,-977.86,0.00013698,2]
[408420986,1773595841756,-977.86,0.00013698,2]
[408420987,1773595841766,-977.86,0.00013698,2]
[408420988,1773595841776,-977.86,0.00013698,2]
[408420989,1773595841786,-977.86,0.00013698,2]
[408420990,1773595841795,-977.86,0.00013698,2]
[408420991,1773595841806,-977.86,0.00013698,2]
[408420992,1773595841818,-977.86,0.00013698,2]
[408420993,1773595841828,-977.86,0.00013698,2]
[408420994,1773595841837,-977.86,0.00013698,2]
[408420995,1773595841847,-977.86,0.00013698,2]
[408420996,1773595841857,-977.86,0.00013698,2]
[408420997,1773595841866,-977.86,0.00013698,2]
[408420998,1773595841875,-977.86,0.00013698,2]
[408420999,1773595841885,-977.86,0.00013698,2]
[408421000,1773595841895,-977.86,0.00013698,2]
[408421001,1773595841904,-977.86,0.00013698,2]
[408421002,1773595841914,-977.86,0.00013698,2]
[408421003,1773595841923,-977.86,0.00013698,2]
[408421004,1773595841932,-977.86,0.00013698,2]
[408421005,1773595841942,-977.86,0.00013698,2]
[408421006,1773595841951,-977.86,0.00013698,2]
[408421007,1773595841960,-977.86,0.00013698,2]
[408421008,1773595841970,-977.97201069,0.00013698,2]
[408421009,1773595841979,-864.56,0.00013698,2]
[408421010,1773595841988,-864.56,0.00013698,2]
[408421011,1773595841998,-864.56,0.00013698,2]
[408421012,1773595842007,-864.56,0.00013698,2]
[408421013,1773595842016,-864.56,0.00013698,2]
[408421014,1773595842026,-864.56,0.00013698,2]
[408421015,1773595842036,-864.56,0.00013698,2]
[408421016,1773595842046,-864.56,0.00013698,2]
[408421017,1773595842055,-864.56,0.00013698,2]
[408421018,1773595842064,-864.56,0.00013698,2]
[408421019,1773595842074,-864.56,0.00013698,2]
[408421020,1773595842084,-864.56,0.00013698,2]
[408421021,1773595842093,-864.56,0.00013698,2]
[408421022,1773595842102,-864.56,0.00013698,2]
[408421023,1773595842111,-864.56,0.00013698,2]
[408421024,1773595842121,-864.56,0.00013698,2]
[408421025,1773595842131,-864.56,0.00013698,2]
[408421026,1773595842142,-864.56,0.00013698,2]
[408421027,1773595842151,-864.56,0.00013698,2]
[408421028,1773595842161,-864.56,0.00013698,2]
[408421029,1773595842171,-864.56,0.00013698,2]
[408421030,1773595842180,-864.56,0.00013698,2]
[408421031,1773595842189,-864.56,0.00013698,2]
[408421032,1773595842200,-864.59,0.00013698,2]
[408421033,1773595842209,-500.0,0.00013698,2]
[408421034,1773595842219,-500.0,0.00013698,2]
[408421035,1773595842229,-500.0,0.00013698,2]
[408421036,1773595842239,-500.0,0.00013698,2]
[408421037,1773595842248,-592.82541067,0.00013698,2]
[408421038,1773595842258,-839.98,0.00013698,2]
[408421039,1773595842267,-839.98,0.00013698,2]
[408421040,1773595842277,-839.98,0.00013698,2]
[408421041,1773595842286,-839.98,0.00013698,2]
[408421042,1773595842295,-839.98,0.00013698,2]
[408421043,1773595842304,-839.98,0.00013698,2]
[408421044,1773595842313,-839.98,0.00013698,2]
[408421045,1773595842322,-839.98,0.00013698,2]
[408421046,1773595842331,-839.98,0.00013698,2]
[408421047,1773595842340,-839.98,0.00013698,2]
[408421048,1773595842349,-839.98,0.00013698,2]
[408421049,1773595842359,-839.98,0.00013698,2]
[408421050,1773595842370,-839.98,0.00013698,2]
[408421051,1773595842381,-839.98,0.00013698,2]
[408421052,1773595842392,-839.98,0.00013698,2]
[408421053,1773595842401,-839.98,0.00013698,2]
[408421054,1773595842411,-839.98,0.00013698,2]
[408421055,1773595842421,-839.98,0.00013698,2]
[408421056,1773595842430,-839.98,0.00013698,2]
[408421057,1773595842440,-839.98,0.00013698,2]
[408421058,1773595842449,-839.98,0.00013698,2]
[408421059,1773595842459,-839.98,0.00013698,2]
[408421060,1773595842468,-839.98,0.00013698,2]
[408421061,1773595842478,-840.04,0.00013698,2]
[408421063,1773595842487,-786.86,0.00013698,2]
[408421065,1773595842496,-786.86,0.00013698,2]
[408421066,1773595842505,-786.86,0.00013698,2]
[408421067,1773595842515,-786.86,0.00013698,2]
[408421068,1773595842525,-786.86,0.00013698,2]
[408421069,1773595842536,-786.86,0.00013698,2]
[408421070,1773595842547,-786.86,0.00013698,2]
[408421071,1773595842557,-786.86,0.00013698,2]
[408421072,1773595842566,-786.86,0.00013698,2]
[408421073,1773595842575,-786.86,0.00013698,2]
[408421074,1773595842585,-786.86,0.00013698,2]
[408421075,1773595842594,-786.86,0.00013698,2]
[408421076,1773595842603,-786.86,0.00013698,2]
[408421077,1773595842613,-786.86,0.00013698,2]
[408421078,1773595842622,-786.86,0.00013698,2]
[408421079,1773595842632,-786.86,0.00013698,2]
[408421080,1773595842641,-786.86,0.00013698,2]
[408421081,1773595842650,-786.86,0.00013698,2]
[408421082,1773595842660,-786.86,0.00013698,2]
[408421083,1773595842669,-786.86,0.00013698,2]
[408421084,1773595842678,-786.86,0.00013698,2]
[408421085,1773595842688,-786.86,0.00013698,2]
[408421086,1773595842697,-786.86,0.00013698,2]
[408421087,1773595842707,-786.95373121,0.00013698,2]
[408421089,1773595842717,-477.88234931,0.00013698,2]
[408421091,1773595842726,-834.2,0.00013698,2]
[408421092,1773595842738,-834.2,0.00013698,2]
[408421093,1773595842748,-834.2,0.00013698,2]
[408421095,1773595842757,-834.2,0.00013698,2]
[408421097,1773595842766,-834.2,0.00013698,2]
[408421098,1773595842775,-834.2,0.00013698,2]
[408421099,1773595842783,-511.32,0.00013698,2]
[408421100,1773595842791,-834.2,0.00013698,2]
[408421101,1773595842800,-511.32,0.00013698,2]
[408421102,1773595842811,-834.2,0.00013698,2]
[408421103,1773595842820,-511.32,0.00013698,2]
[408421104,1773595842829,-834.2,0.00013698,2]
[408421105,1773595842838,-511.32,0.00013698,2]
[408421106,1773595842847,-834.2,0.00013698,2]
[408421107,1773595842855,-511.32,0.00013698,2]
[408421108,1773595842864,-834.2,0.00013698,2]
[408421109,1773595842872,-511.32,0.00013698,2]
[408421110,1773595842881,-834.2,0.00013698,2]
[408421111,1773595842889,-511.32,0.00013698,2]
[408421112,1773595842898,-511.32,0.00013698,2]
[408421113,1773595842909,-834.2,0.00013698,2]
[408421114,1773595842918,-511.32,0.00013698,2]
[408421115,1773595842927,-834.2,0.00013698,2]
[408421116,1773595842935,-511.32,0.00013698,2]
[408421117,1773595842944,-834.2,0.00013698,2]
[408421118,1773595842953,-511.32,0.00013698,2]
[408421119,1773595842962,-834.2,0.00013698,2]
[408421120,1773595842970,-511.32,0.00013698,2]
[408421121,1773595842979,-834.2,0.00013698,2]
[408421122,1773595842988,-511.32,0.00013698,2]
[408421123,1773595842997,-834.2,0.00013698,2]
[408421124,1773595843007,-511.32,0.00013698,2]
[408421125,1773595843015,-834.2,0.00013698,2]
[408421126,1773595843024,-511.32,0.00013698,2]
[408421127,1773595843033,-834.2,0.00013698,2]
[408421128,1773595843042,-511.32,0.00013698,2]
[408421129,1773595843050,-834.2,0.00013698,2]
[408421130,1773595843059,-511.32,0.00013698,2]
[408421131,1773595843068,-834.2,0.00013698,2]
[408421132,1773595843077,-511.32,0.00013698,2]
[408421133,1773595843086,-834.2,0.00013698,2]
[408421134,1773595843096,-511.32,0.00013698,2]
[408421136,1773595843105,-834.32492812,0.00013698,2]
[408421137,1773595843114,-511.32,0.00013698,2]
[408421138,1773595843124,-511.32,0.00013698,2]
[408421139,1773595843135,-511.32,0.00013698,2]
[408421140,1773595843144,-511.32,0.00013698,2]
[408421141,1773595843154,-511.4966671,0.00013698,2]
[408421142,1773595843163,-572.79722984,0.00013698,2]
[408421143,1773595843172,-1341.33,0.00013698,2]
[408421144,1773595843181,-1341.33,0.00013698,2]
[408421145,1773595843191,-1341.33,0.00013698,2]
[408421146,1773595843389,-1341.33,0.00013698,2]
[408421147,1773595843399,-1341.33,0.00013698,2]
[408421148,1773595843408,-1341.33,0.00013698,2]
[408421150,1773595843417,-1341.33,0.00013698,2]
[408421152,1773595843427,-1341.33,0.00013698,2]
[408421154,1773595843436,-1341.33,0.00013698,2]
[408421156,1773595843445,-1341.33,0.00013698,2]
[408421157,1773595843454,-1341.33,0.00013698,2]
[408421158,1773595843463,-1341.33,0.00013698,2]
[408421159,1773595843473,-1341.33,0.00013698,2]
[408421160,1773595843482,-1341.33,0.00013698,2]
[408421161,1773595843491,-1341.33,0.00013698,2]
[408421162,1773595843500,-1341.33,0.00013698,2]
[408421163,1773595843509,-1341.33,0.00013698,2]
[408421164,1773595843519,-1341.33,0.00013698,2]
[408421165,1773595843528,-1341.33,0.00013698,2]
[408421166,1773595843537,-1341.33,0.00013698,2]
[408421167,1773595843546,-1341.33,0.00013698,2]
[408421168,1773595843555,-1341.33,0.00013698,2]
[408421169,1773595843564,-1341.33,0.00013698,2]
[408421170,1773595843573,-1341.38767009,0.00013698,2]
[408421171,1773595843582,-641.57,0.00013698,2]
[408421172,1773595843592,-641.57,0.00013698,2]
[408421173,1773595843601,-641.57,0.00013698,2]
[408421174,1773595843611,-641.57,0.00013698,2]
[408421175,1773595843620,-641.57,0.00013698,2]
[408421176,1773595843630,-197.40013572,0.00013698,2]
[408421177,1773595843639,-641.57,0.00013698,2]
[408421178,1773595843648,-641.57,0.00013698,2]
[408421179,1773595843657,-641.57,0.00013698,2]
[408421180,1773595843667,-641.57,0.00013698,2]
[408421181,1773595843677,-641.57,0.00013698,2]
[408421182,1773595843685,-641.57,0.00013698,2]
[408421183,1773595843695,-641.57,0.00013698,2]
[408421184,1773595843706,-641.57,0.00013698,2]
[408421185,1773595843715,-641.57,0.00013698,2]
[408421186,1773595843724,-641.57,0.00013698,2]
[408421187,1773595843740,-641.57,0.00013698,2]
[408421188,1773595843749,-641.57,0.00013698,2]
[408421189,1773595843758,-641.57,0.00013698,2]
[408421190,1773595843767,-641.57,0.00013698,2]
[408421191,1773595843778,-641.57,0.00013698,2]
[408421192,1773595843789,-641.57,0.00013698,2]
[408421193,1773595843798,-641.57,0.00013698,2]
[408421194,1773595843808,-641.57,0.00013698,2]
[408421195,1773595843817,-641.73974551,0.00013698,2]
[408421196,1773595843827,-2061.9,0.00013698,2]
[408421197,1773595843837,-2061.9,0.00013698,2]
[408421198,1773595843848,-2061.9,0.00013698,2]
[408421199,1773595843858,-2061.9,0.00013698,2]
[408421200,1773595843867,-2061.9,0.00013698,2]
[408421201,1773595843876,-2061.9,0.00013698,2]
[408421202,1773595843885,-2061.9,0.00013698,2]
[408421203,1773595843894,-2061.9,0.00013698,2]
[408421204,1773595843904,-2061.9,0.00013698,2]
[408421205,1773595843914,-2061.9,0.00013698,2]
[408421206,1773595843924,-2061.9,0.00013698,2]
[408421207,1773595843934,-2061.9,0.00013698,2]
[408421208,1773595843944,-2061.9,0.00013698,2]
[408421209,1773595843953,-2061.9,0.00013698,2]
[408421210,1773595843962,-2061.9,0.00013698,2]
[408421211,1773595843972,-2061.9,0.00013698,2]
[408421212,1773595843981,-2061.9,0.00013698,2]
[408421213,1773595843990,-2061.9,0.00013698,2]
[408421214,1773595843999,-2061.9,0.00013698,2]
[408421215,1773595844009,-2061.9,0.00013698,2]
[408421216,1773595844018,-2061.9,0.00013698,2]
[408421217,1773595844027,-2061.9,0.00013698,2]
[408421218,1773595844037,-2061.9,0.00013698,2]
[408421219,1773595844046,-2061.96808224,0.00013698,2]
[408421220,1773595844055,-619.94,0.00013698,2]
[408421221,1773595844064,-619.94,0.00013698,2]
[408421222,1773595844073,-619.94,0.00013698,2]